Cogmind - Beta 9.6 @@@ ROGUE MODE // 2020.06.15 @ 08:40:00 Player: Teratos Result: Self-destructed Performance ------------- Evolutions (1) 500 Regions Visited (3) 600 Robots Destroyed (54) 270 Value Destroyed (1120) 1120 Prototype IDs (3) 60 Alien Tech Used (0) 0 Bonus (2) 2 TOTAL SCORE: 2552 Bonus ------- High Alert Combat Kills 2 Cogmind --------- Core Integrity 306/400 Matter 300/300 Energy 21/100 System Corruption 1% Temperature Cool (138) Movement Flying (32) Location -9/Materials Parts ------- > --- POWER (1) -------- (None) > --- PROPULSION (2) --- Improved Flight Unit Improved Flight Unit > --- UTILITY (2) ------ Advanced Weight Redist. System > --- WEAPON (4) ------- Particle Cannon Advanced Beam Cannon Advanced Beam Cannon > --- INVENTORY (4) ---- Improved Heat Sink Advanced Weight Redist. System Particle Gun Particle Gun Peak State ------------ > --- POWER ------------ Light Nuclear Core > --- PROPULSION ------- Improved Flight Unit Improved Flight Unit > --- UTILITY ---------- Improved Heat Sink Advanced Weight Redist. System > --- WEAPON ----------- Particle Gun Particle Gun Advanced Beam Cannon Advanced Beam Cannon > --- INVENTORY -------- Improved Heat Sink Advanced Weight Redist. System Particle Gun Particle Gun [Rating: 26] Favorites ----------- Power Light Nuclear Core Engine Ion Engine Power Core Light Nuclear Core Propulsion Improved Flight Unit Treads Light Treads Flight Unit Improved Flight Unit Utility Large Storage Unit Device Advanced Weight Redist. System Storage Large Storage Unit Hackware Hacking Suite Weapon Particle Gun Energy Gun Particle Gun Energy Cannon Advanced Beam Cannon Launcher Grenade Launcher Build | -11 -10 -10 -9 ------- Run | Scr Mat Min Mat Slots Evolved 2 | . . . 2 Power . | . . . . Propulsion . | . . . . Utility . | . . . . Weapon 2 | . . . 2 Parts Attached 32 | 6 5 1 20 Power 4 | 1 1 . 2 Engine 2 | 1 . . 1 Core 2 | . 1 . 1 Reactor . | . . . . Propulsion 5 | 2 . 1 2 Treads 2 | 2 . . . Leg . | . . . . Wheel . | . . . . Hover . | . . . . Flight 3 | . . 1 2 Utility 7 | 1 2 . 4 Device 4 | . . . 4 Storage 2 | 1 1 . . Processor . | . . . . Hackware 1 | . 1 . . Protection . | . . . . Artifact . | . . . . Weapon 16 | 2 2 . 12 Energy Gun 11 | 2 1 . 8 Energy Cannon 4 | . . . 4 Ballistic Gun . | . . . . Ballistic Cannon . | . . . . Launcher 1 | . 1 . . Special Weapon . | . . . . Impact Weapon . | . . . . Slashing Weapon . | . . . . Piercing Weapon . | . . . . Special Melee Weapon . | . . . . Unidentified Prototypes 3 | . . . 3 Parts Lost 10 | . 4 1 5 Power 2 | . . . 2 Propulsion 2 | . 1 1 . Utility 1 | . . . 1 Weapon 5 | . 3 . 2 Highest Loss Streak 3 | . 1 1 3 Average Slot Usage (%) 84 | . 85 61 95 Engine 3 | . 10 . . Core 9 | . 3 14 10 Treads 8 | . 25 . . Flight 10 | . . 4 21 Device 8 | . . . 18 Storage 8 | . 14 14 1 Hackware 7 | . 11 14 1 Energy Gun 16 | . 15 . 26 Energy Cannon 6 | . . . 14 Launcher 4 | . 3 14 . Naked Turns . | . . . . Heaviest Build 33 | 12 28 24 33 Greatest Support 40 | 40 40 4 21 Greatest Overweight (x) 7 | . 1 7 5 Average Overweight (x) . | . . 6 . Largest Inventory Capacity 12 | 6 12 10 10 Average Capacity 7 | 4 9 10 4 Most Carried 4 | . . 1 4 Average Carried 1 | . . . 3 Final Capacity 10 | 6 10 10 4 Final Carried 4 | . . 1 4 Class Distribution -------------------- 59% | Mutant 35% | Sprinter 4% | Gunner Dominant Class ---------------- Mutant | -10/Materials Mutant | -10/Mines Sprinter | -9/Materials Resources | -11 -10 -10 -9 ----------- Run | Scr Mat Min Mat Matter Collected 710 | 77 213 78 342 Remotely . | . . . . Salvage Created 1306 | . 447 63 796 Parts 116 | . 50 8 58 Haulers Intercepted 5 | . 1 . 4 Recyclers Shooed 2 | . . . 2 Parts Field Recycled . | . . . . Retrieved Matter . | . . . . Parts Self-Destructed . | . . . . Prevented . | . . . . Kills | -11 -10 -10 -9 ------- Run | Scr Mat Min Mat Combat Hostiles Destroyed 33 | . 13 8 12 Guns 8 | . 3 . 5 Cannons 7 | . . . 7 AOE 18 | . 10 8 . Classes Destroyed 12 | . 8 . 4 Worker 2 | . 2 . . Builder 4 | . 2 . 2 Tunneler 1 | . 1 . . Hauler 5 | . 1 . 4 Recycler 2 | . . . 2 Mechanic 1 | . . . 1 Operator 3 | . 2 . 1 Watcher 3 | . 1 . 2 Swarmer 13 | . 3 6 4 Grunt 14 | . 10 2 2 Brawler 2 | . . . 2 Sentry 4 | . . . 4 Best Kill Streak 7 | . 7 3 5 Combat Bots Only 5 | . 5 3 2 Max Kills in Single Turn 3 | . 3 2 1 Gunslinging . | . . . . Exploded 2 | . 2 2 . Melee . | . . . . Uniques/NPCs Destroyed . | . . . . Combat | -11 -10 -10 -9 -------- Run | Scr Mat Min Mat Damage Taken 1111 | . 442 178 491 Core 173 | . 23 56 94 Absorbed by Shields . | . . . . Core Remaining (%) 84 | 100 . 68 . Volleys Fired 85 | . 29 10 46 Largest 4 | . 2 1 4 Hottest 269 | . 80 30 269 Shots Fired 230 | . 41 10 179 Gun 151 | . 29 . 122 Cannon 57 | . . . 57 Launcher 22 | . 12 10 . Special . | . . . . Kinetic . | . . . . Thermal 194 | . 15 . 179 Explosive 22 | . 12 10 . Electromagnetic 14 | . 14 . . Robot Hit Streak 13 | . 12 5 13 Robot Miss Streak 4 | . 3 1 4 Penetration Max . | . . . . Secondary Targets . | . . . . Shots Hit Robots 124 | . 22 5 97 Core Hits 78 | . 36 10 32 Critical Hits 5 | . . . 5 Critical Kills 2 | . . . 2 Critical Parts Destroyed 3 | . . . 3 Melee Attacks . | . . . . Impact . | . . . . Slashing . | . . . . Piercing . | . . . . Sneak Attacks . | . . . . Combat Hostiles . | . . . . Follow-up Attacks . | . . . . Damage Inflicted 3252 | . 911 633 1708 Guns 1300 | . 227 . 1073 Cannons 635 | . . . 635 Explosions 1299 | . 666 633 . Melee . | . . . . Ramming 18 | . 18 . . Kinetic . | . . . . Thermal 1854 | . 146 . 1708 Explosive 1227 | . 594 633 . Electromagnetic 153 | . 153 . . Impact . | . . . . Slashing . | . . . . Piercing . | . . . . Highest Corruption 1 | . . . 1 Average Corruption 1 | . . . 1 Corruption Purged . | . . . . Effects 1 | . . . 1 Message Errors 1 | . . . 1 Overload Shots . | . . . . Overflow Damage 101 | . . 101 . Projectiles . | . . . . Explosions 101 | . . 101 . Melee . | . . . . Knockbacks . | . . . . Impact . | . . . . Kinetic . | . . . . Secondary . | . . . . Self-Inflicted Damage 147 | . 39 108 . Shots 5 | . 1 4 . Rammed 2 | . 1 1 . Targets Rammed 4 | . 3 1 . Kicked . | . . . . Crushed 2 | . 2 . . Highest Temperature 444 | . 144 9 444 Average Temperature 111 | . 38 6 125 Received Heat Transfer 297 | . 195 24 78 Effects 8 | . . . 8 Interference 8 | . . . 8 Siege Activations . | . . . . Robots Corrupted . | . . . . Combat Hostiles . | . . . . Parts Fried . | . . . . Impact Corruptions . | . . . . Robots Melted . | . . . . Combat Hostiles . | . . . . Parts Melted 1 | . . . 1 Heat Transferred 3962 | . 225 . 3737 Parts Sabotaged . | . . . . Parts Stolen . | . . . . Parts Stripped . | . . . . Power Chain Reactions 2 | . 2 . . Missiles Intercepted . | . . . . Alert | -11 -10 -10 -9 ------- Run | Scr Mat Min Mat Peak Influence 435 | . 294 309 435 Average Influence 172 | . 106 234 198 Maximum Alert Level 2 | . 1 1 2 Low Security (%) 52 | 100 80 23 44 Level 1 45 | . 19 76 49 Level 2 2 | . . . 5 Level 3 . | . . . . Level 4 . | . . . . Level 5 . | . . . . High Security . | . . . . Max Security . | . . . . Squads Dispatched 5 | . 3 . 2 Investigation 2 | . 1 . 1 Extermination . | . . . . Reinforcement 3 | . 2 . 1 Assault . | . . . . Garrison . | . . . . Intercept . | . . . . Construction Impeded . | . . . . Haulers Reinforced . | . . . . Stealth | -11 -10 -10 -9 --------- Run | Scr Mat Min Mat Distress Signals 3 | . 1 . 2 Communications Jammed . | . . . . Distress Signals . | . . . . Times Spotted 56 | . 20 6 30 Peak Tracking Total 9 | . 6 3 9 Tactical Retreats 6 | . 1 . 5 Traps | -11 -10 -10 -9 ------- Run | Scr Mat Min Mat Traps Triggered 3 | . 1 . 2 Indirectly . | . . . . Trap Hack Attempts . | . . . . Triggered . | . . . . Disarmed . | . . . . Reprogrammed 6 | . . . 6 Reused 1 | . . . 1 Traps Extracted . | . . . . Installed . | . . . . Triggered 1 | . . . 1 Machines | -11 -10 -10 -9 ---------- Run | Scr Mat Min Mat Machines Disabled 5 | . 2 . 3 Max in Single Turn 2 | . 2 . 1 Machines Sabotaged . | . . . . Garrisons Compromised . | . . . . Overloaded Fab Kills . | . . . . Fab Network Shutdowns . | . . . . Hacking | -11 -10 -10 -9 --------- Run | Scr Mat Min Mat Machines Accessed 6 | . 2 . 4 Terminals 5 | . 2 . 3 Fabricators . | . . . . Repair Stations 1 | . . . 1 Recycling Units . | . . . . Scanalyzers . | . . . . Garrison Access . | . . . . Total Hacks 13 | . 4 . 9 Successful 8 | . 2 . 6 Failed 5 | . 2 . 3 Catastrophic . | . . . . Database Lockouts . | . . . . Manual . | . . . . Terminals 10 | . 4 . 6 Fabricators . | . . . . Repair Stations 3 | . . . 3 Recycling Units . | . . . . Scanalyzers . | . . . . Garrison Access . | . . . . Terminal Hacks 7 | . 2 . 5 Emergency Access Points 1 | . . . 1 Locate Traps 1 | . 1 . . Reprogram Traps 1 | . . . 1 Registered Components 1 | . 1 . . Zone Layout 3 | . . . 3 Fabricator Hacks . | . . . . Repair Station Hacks 1 | . . . 1 Scan Component 1 | . . . 1 Recycling Unit Hacks . | . . . . Scanalyzer . | . . . . Garrison Access Hacks . | . . . . Unauthorized Hacks . | . . . . Terminals . | . . . . Fabricators . | . . . . Repair Stations . | . . . . Recycling Units . | . . . . Scanalyzers . | . . . . Garrison Access . | . . . . Data Cores Recovered 1 | . . . 1 Used 1 | . . . 1 Hacking Detections 3 | . 1 . 2 Full Trace Events 3 | . 1 . 2 Feedback Events . | . . . . Feedback Blocked . | . . . . Robot Schematics Acquired . | . . . . Robots Built . | . . . . Matter . | . . . . Time . | . . . . Total Robot Build Rating . | . . . . Part Schematics Acquired . | . . . . Parts Built . | . . . . Matter . | . . . . Time . | . . . . Total Part Build Rating . | . . . . Parts Repaired . | . . . . Time . | . . . . Parts Recycled . | . . . . Recycled Matter . | . . . . Retrieved Matter . | . . . . Retrieved Components . | . . . . Parts Scanalyzed . | . . . . Part Schematics Acquired . | . . . . Parts Damaged . | . . . . Bothacking | -11 -10 -10 -9 ------------ Run | Scr Mat Min Mat Used RIF Installer . | . . . . Robots Hacked . | . . . . Non-combat . | . . . . Combat . | . . . . Robot Hacks Applied . | . . . . Relay Couplers Released . | . . . . Robots Rewired . | . . . . Allies Hacked . | . . . . Hacks Repelled . | . . . . Allies | -11 -10 -10 -9 -------- Run | Scr Mat Min Mat Total Allies . | . . . . Largest Group . | . . . . Highest-Rated Group . | . . . . Highest-Rated Ally . | . . . . Total Orders . | . . . . Ally Attacks . | . . . . Total Damage . | . . . . Kills . | . . . . Allies Corrupted . | . . . . Allies Melted . | . . . . Intel | -11 -10 -10 -9 ------- Run | Scr Mat Min Mat Robot Analysis Total . | . . . . Derelict Logs Recovered 1 | . . 1 . Drone Launches . | . . . . Drone Recoveries . | . . . . Exploration | -11 -10 -10 -9 ------------- Run | Scr Mat Min Mat Turns Passed 1931 | 61 602 461 807 Spaces Moved 1127 | 36 314 106 671 Core 74 | 4 . 70 . Treads 346 | 32 314 . . Legs . | . . . . Wheels . | . . . . Hover . | . . . . Flight 707 | . . 36 671 Fastest Speed 32 | 50 160 400 32 Average Speed 114 | 147 163 413 43 Slowest Speed 440 | 160 180 440 440 Overloaded Moves . | . . . . Propulsion Burnouts . | . . . . Robots Hopped 7 | . . . 7 Cave-ins Triggered . | . . . . Exploration Rate (%) 35 | 3 57 28 53 Regions Visited 3 Branch Regions 1 Pre-discovered Areas . | . . . . Known Exits Taken . | . . . . Unknown Exits Taken 3 | 1 1 1 . Scrap Searched 1 | . . 1 . Spaces Dug . | . . . . Terrain Destroyed 81 | . 17 64 . Melee . | . . . . Projectile . | . . . . AOE 81 | . 17 64 . Actions | -11 -10 -10 -9 --------- Run | Scr Mat Min Mat Total 1582 | 41 358 118 1065 Wait 321 | . 6 . 315 Move 1110 | 35 313 105 657 Hop 7 | . . . 7 Pick Up 4 | . . 1 3 Fast Attach 31 | 6 5 1 19 Attach 2 | . . . 2 Detach 4 | . . . 4 Swap . | . . . . Drop 14 | . 2 . 12 Fire 85 | . 29 10 46 Melee . | . . . . Ram 1 | . . 1 . Kick . | . . . . Crush 3 | . 3 . . Escape Stasis . | . . . . Rewire . | . . . . Trap . | . . . . Miscellaneous . | . . . . Route ------- -11/Scrapyard -10/Materials (discovered 3 exits: *Mat x2 / [*Min]) -10/Mines -9/Materials (discovered 5 exits: [*Mat x2] / [*Min] / *Sto x2) History --------- Turn | Location | Event 2 | -11/Scrapyard | Discovered new exit (range 16) 62 | -11/Scrapyard | Entered Materials 304 | -10/Materials | Build established: Mutant 368 | -10/Materials | Discovered new exit (range 15) 439 | -10/Materials | Discovered new exit (range 10) 604 | -10/Materials | Discovered new exit (range 13) 664 | -10/Materials | Entered Mines 1002 | -10/Mines | Discovered new exit (range 12) 1125 | -10/Mines | Entered Materials 1125 | -9/Materials | Evolved 2 slots: Weapon x2 1126 | -9/Materials | Identified exit to Storage 1392 | -9/Materials | Discovered new exit (range 16) 1416 | -9/Materials | Discovered new exit (range 16) 1601 | -9/Materials | Build established: Sprinter 1713 | -9/Materials | Discovered exit to Storage (range 16) 1845 | -9/Materials | Discovered new exit (range 3) 1932 | -9/Materials | Self-destructed Last Messages --------------- Downloaded map data. 01858_ Connecting with Repair Station... >>Scan(Lgt. Nuclear Core) Scanning Lgt. Nuclear Core... Ready to Repair: Lgt. Nuclear Core Rating: 3 Time: 19 01858_ ALERT: Suspicious activity at Repair Station M001. Dispatching Investigation squad. 01865_ U-05 Engineer destroyed. 01871_ Acquired Particle Cannon. 01888_ C-30 ARC bursts open, deploying its payload. 01888_ S-10 Pest unfolds itself. 01890_ Acquired 10 matter. 01892_ S-10 Pest destroyed. 01902_ Lgt. Nuclear Core destroyed. 01905_ Imp. Heat Sink destroyed. 01917_ Particle Gun destroyed. 01929_ S-10 Pest destroyed. Map ----- +----------------------------------------------------+ | #?? """ #### ###?#######/######????# | | ######### #?? ## ###T### ######### | | ??????### ##? ## % ## | | ?????#" #?####### T < ## | | ?????#"" #???????# ## | | ?????#!! #???????# ####### ###+##### | | ?????#"" < #???????############## ##?# # | | ?????#!! #???????????# # #??# # | | ?????#"" #???????????# """ # #??# # | | ?????#" #???????????# """ + #??# # | | ?######## ########?????# """ # #??# # | | ?# """ # # """ """????# """# #??# # # | | ?# "Y" + + """ """ #??# """ """# #??# !! # # | | ## # # """ """ #??# """ R"# #??# !! + # | | # # # #??# """ """# #??# ![ ### | | # # # #??# # #??# #?? | | # """ # # #??########## #??# #?? | | # """ # # #???????????# #??# #?? | | # """ # # #??##########[ #??#######?? | | # # ###########??# =%* #??????????? | | # """ # #????????????# #########/#####???????? | | # """ # ^ #????????????# #???# "%" #???????? | | # """ # #????????????# #???# """!""" #???????? | | # # #????????????#s#???# """%""" #???????? | | # ###### #??????????###s###?# """*""" #???????? | | ###????# #??????????# @% #?# #???????? | | #??????# #??????????# a #?# #???????? | | ##?????# ###????????# #?# #???????? | | ####### #????????# g #?# #???????? | | #????????# k#?###########???????? | | #????????# #???????????????????? | | #????????# #???????????????????? | | ####### #????????####+##???????????????????? | | ######### ##???????????? ????????????????????? | | ## # #????????????? ????????????????????? | | ## # #????????????? ????????????????????? | | ##""" / #?????????????+##???????????????????? | | ##""" # #???????????????????????????????????? | | ##""" # #???????????????????????????????????? | | ## ?# #???????????????????????????????????? | | #######?# #???????????????????????????????????? | | #???????# +???????????????????????????????????? | | #???????# #???????????????????????????????????? | | #???????+ #???????????????????????????????????? | | #???????# #???????????????????????????????????? | | #???????# < #???????????????????????????????????? | | #???????# #???????????????????????????????????? | | ##???????#####???????????????????????????????????? | | ?????????????????????????????????????????????????? | | ?????????????????????????????????????????????????? | +----------------------------------------------------+ Best States ------------- Heat Dissipation 42 Energy Generation 14 Energy Capacity 250 Matter Stores 300 Matter Capacity 300 Sight Range 16 Terrain Scan Density 10 Additional Mass Support 9 Evasion (%) 63 Recoil Reduction 2 Offensive Hacking 10 Item Schematics ----------------- None Robot Schematics ------------------ None Fabricated ------------ Nothing Alien Tech Used ----------------- None Achievements -------------- None Challenges ------------ None Game ------ Seed ColdHypervelocityWings Manual? 0 Play Time 00:31:26 Cumulative 38.8 hours Start 2020.06.15 @ 00:41:26 End 2020.06.15 @ 08:40:00 Sessions 1 Manual Loads 0 Difficulty Rogue Special Mode None Game No. 89 Rogue 89 Adventurer 0 Explorer 0 Win Type - Total 0 Types 0/0/0/0/0/0/0 Lore% 24 Gallery% 26 Achievement% 22 Wizard Run 0 Options --------- ASCII 0 Keyboard 0 Movement Numpad Keybinds 0 Fullscreen 1 Font 18/SmallcapsGlow Map View 76x50 Tactical HUD 1 Map Filters NONE Filters NONE Steam 1 RUN: 41abdc93-5e8d-4938-9067-e57df6b23dc5